bitfinex/quotes_ETHUSD_20260225
["timestamp","ask_amount","ask_price","bid_price","bid_amount"]
[1771981346485,0.45178979,1855.4,1854.8,1.80124339]
[1771981346967,0.45178979,1855.4,1854.9,0.45338918]
[1771981348001,0.45178979,1855.6,1854.9,0.45338918]
[1771981348399,0.001,1855.3,1855.1,0.45338918]
[1771981351286,0.001,1855.3,1855.2,1.3475636]
[1771981353596,0.001,1855.3,1854.9,5.39083557]
[1771981353597,0.45278979,1855.3,1854.9,1.80117073]
[1771981353785,0.45278979,1855.3,1854.9,1.34778155]
[1771981354606,0.45278979,1855.3,1854.9,1.80117073]
[1771981356814,0.001,1855.3,1855.0,0.45338918]
[1771981358889,0.001,1855.3,1855.1,1.34763624]
[1771981360112,1.34732648,1855.6,1855.2,0.45338918]
[1771981360113,0.45178979,1855.6,1855.2,0.45338918]
[1771981360407,5.84242549,1855.8,1855.2,0.45338918]
[1771981360591,0.45178979,1855.7,1855.2,0.45338918]
[1771981360799,0.002,1855.8,1855.4,0.45338918]
[1771981361979,0.002,1855.8,1855.5,0.45338918]
[1771981362207,0.45278979,1856.1,1855.7,0.45338918]
[1771981362598,0.001,1856.1,1855.7,0.45338918]
[1771981363314,0.001,1856.1,1855.8,1.34712792]
[1771981364702,0.001,1856.1,1855.8,1.8005171]
[1771981368994,0.45278979,1856.1,1855.8,1.8005171]
[1771981369185,0.45278979,1856.1,1855.7,1.34720051]
[1771981370225,0.45278979,1856.1,1855.6,5.38892086]
[1771981370593,0.45278979,1856.1,1855.6,5.84231004]
[1771981371721,0.002,1856.2,1855.9,0.45338918]
[1771981371930,0.002,1856.5,1856.2,2.90749458]
[1771981372086,0.002,1856.5,1856.1,0.45338918]
[1771981372426,0.45378979,1856.5,1856.2,1.34683762]
[1771981373896,0.002,1856.4,1856.2,1.34683762]
[1771981374102,0.45178979,1856.8,1856.2,1.34683762]
[1771981374311,0.45178979,1856.6,1856.2,1.34683762]
[1771981374799,0.45178979,1856.6,1856.2,4.70772138]
[1771981375005,0.45378979,1856.7,1856.2,4.70772138]
[1771981378625,1.3484822,1856.7,1856.2,4.70772138]
[1771981378936,0.48840879,1856.6,1856.2,4.70772138]
[1771981380904,0.48840879,1856.9,1856.5,0.49110995]
[1771981381128,0.002,1857.0,1856.5,0.49110995]
[1771981381335,1.83667024,1857.0,1856.5,0.49110995]
[1771981381829,0.49040879,1857.0,1856.5,0.49110995]
[1771981382225,0.002,1857.0,1856.5,0.49110995]
[1771981382738,0.002,1857.1,1856.7,0.49110995]
[1771981383309,0.48840879,1857.0,1856.6,1.34654745]
[1771981384749,0.48840879,1857.0,1856.6,0.49110995]
[1771981386041,0.002,1856.9,1856.6,0.49110995]
[1771981386355,0.49040879,1856.9,1856.4,1.34666206]
[1771981386839,0.48840879,1856.8,1856.4,1.34666206]
[1771981388628,0.48840879,1856.8,1856.4,1.83777201]
[1771981388833,0.002,1856.9,1856.4,1.83777201]
[1771981389151,0.002,1856.9,1856.5,0.49110995]
[1771981389457,0.49040879,1856.9,1856.5,0.49110995]
[1771981391343,0.49040879,1856.9,1856.6,1.34654745]
[1771981392449,0.49040879,1856.9,1856.5,1.83768294]
[1771981393650,0.002,1856.9,1856.6,0.49110995]
[1771981394424,0.48840879,1856.8,1856.4,1.34663523]
[1771981394921,0.002,1856.9,1856.5,0.49110995]
[1771981395534,0.49040879,1856.9,1856.5,0.49110995]
[1771981395837,0.002,1857.0,1856.6,1.34654745]
[1771981396061,0.48840879,1857.4,1856.9,0.49110995]
[1771981396221,0.49040879,1857.3,1856.9,0.49110995]
[1771981397248,0.002,1857.3,1856.9,0.49110995]
[1771981397756,0.05389397,1857.8,1857.2,0.49110995]
[1771981397960,0.48840879,1857.8,1857.3,4.74464448]
[1771981398262,0.002,1857.7,1857.4,0.49110995]
[1771981398424,0.48840879,1858.0,1857.6,0.49110995]
[1771981398816,0.48840879,1858.0,1857.4,0.49110995]
[1771981399249,0.48840879,1857.9,1857.3,1.34603995]
[1771981399653,0.53630276,1857.9,1857.3,1.34603995]
[1771981399854,0.53630276,1857.9,1857.1,5.38458817]
[1771981400022,0.48840879,1857.7,1857.1,5.38458817]
[1771981401840,0.48840879,1857.7,1857.1,8.29208275]
[1771981402046,0.48840879,1857.7,1857.3,1.34603995]
[1771981402622,0.48840879,1857.9,1857.3,1.8371499]
[1771981402845,0.48840879,1857.9,1857.4,0.49110995]
[1771981403655,0.48840879,1857.8,1857.2,1.83717259]
[1771981404266,1.83415891,1857.7,1857.2,1.83717259]
[1771981404554,0.48840879,1857.6,1857.2,1.34606264]
[1771981404727,0.53630276,1857.6,1857.1,1.34614903]
[1771981404928,0.53630276,1857.6,1857.1,1.34061501]
[1771981404929,0.48840879,1857.6,1857.1,1.34061501]
[1771981405743,0.48840879,1857.6,1857.0,5.87601092]
[1771981406052,0.04789397,1857.5,1856.9,1.34627902]
[1771981406230,0.4675928,1857.4,1856.9,1.34627902]
[1771981406629,1.81356634,1857.4,1856.9,1.34627902]
[1771981406858,0.4675928,1857.3,1856.8,5.8705403]
[1771981407233,0.4675928,1857.3,1856.5,0.001]
[1771981407434,0.4675928,1857.3,1856.6,5.87112423]
[1771981407955,0.4675928,1857.3,1856.7,0.48507216]
[1771981408552,0.4675928,1857.7,1856.9,0.48507216]
[1771981408727,0.4675928,1857.7,1857.0,0.48507216]
[1771981408929,0.51548677,1857.6,1857.0,0.48507216]
[1771981409369,0.51548677,1857.6,1856.8,0.53886369]
[1771981409531,0.51548677,1857.6,1856.8,0.48507216]
[1771981410170,0.46142704,1858.0,1857.4,0.48507216]
[1771981410380,3.42386711,1858.2,1857.4,0.48507216]
[1771981410580,3.42386711,1858.2,1857.5,1.83096718]
[1771981410967,1.617,1858.2,1857.6,0.48507216]
[1771981411658,0.002,1857.9,1857.6,0.48507216]
[1771981412486,0.002,1858.1,1857.7,1.34575012]
[1771981412669,0.002,1858.1,1857.8,0.48507216]
[1771981413776,0.002,1858.1,1857.7,1.34575012]
[1771981414988,0.46542704,1858.1,1857.6,1.83083919]
[1771981416990,0.002,1858.1,1857.7,0.48507216]
[1771981418192,0.46342704,1858.0,1857.4,1.34592436]
[1771981418396,0.46342704,1858.0,1857.3,1.83105756]
[1771981418595,0.46342704,1858.0,1857.3,0.48507216]
[1771981418798,0.46342704,1858.0,1857.2,1.34606843]
[1771981418964,0.46342704,1857.8,1857.2,1.83114059]
[1771981419163,0.46342704,1857.8,1857.3,0.48507216]
[1771981419774,0.46342704,1857.8,1857.1,0.48507216]
[1771981420395,0.46342704,1857.8,1857.0,1.34723267]
[1771981420598,0.46342704,1857.6,1856.9,1.34732542]
[1771981420798,0.46342704,1857.6,1856.9,1.83239758]
[1771981421100,1.80932206,1857.5,1856.9,1.83239758]
[1771981421465,0.46342704,1857.5,1856.9,1.83239758]
[1771981421660,2.56207836,1857.9,1857.0,0.48507216]
[1771981421661,1.80910268,1857.9,1857.0,0.48507216]
[1771981422488,1.34567564,1857.9,1857.0,0.48507216]
[1771981422698,1.34558329,1858.0,1857.0,0.48507216]
[1771981423070,0.46342704,1858.0,1857.2,0.48507216]
[1771981424000,0.46542704,1858.0,1857.2,0.48507216]
[1771981425723,1.34560525,1857.9,1857.3,1.83111211]
[1771981427417,1.80903229,1857.9,1857.3,1.83111211]
[1771981429705,0.46342704,1857.9,1857.3,1.83111211]
[1771981429893,1.80904882,1857.9,1857.3,1.83111211]
[1771981431415,0.46342704,1857.8,1857.3,0.48507216]
[1771981431914,1.34575012,1857.7,1857.3,0.48507216]
[1771981432813,1.80917716,1857.7,1857.3,0.48507216]
[1771981433711,1.80917716,1857.7,1857.1,1.83220443]
[1771981433920,1.80932206,1857.5,1857.1,0.001]
[1771981435821,1.80942872,1857.4,1857.1,0.001]
[1771981436892,1.81126004,1857.6,1857.1,0.47018749]
[1771981438112,1.81126004,1857.6,1857.1,1.81636723]
[1771981438620,0.002,1857.6,1857.2,0.46918749]
[1771981440414,0.002,1857.6,1857.3,0.46918749]
[1771981442308,0.002,1857.6,1857.4,1.81515497]
[1771981443028,0.46542704,1857.6,1857.0,0.001]
[1771981443220,0.46342704,1857.5,1856.9,0.001]
[1771981443523,0.46342704,1857.5,1856.9,0.47018749]
[1771981443701,0.46342704,1857.5,1856.9,0.001]
[1771981443893,0.46342704,1857.5,1856.8,0.001]
[1771981444326,0.46242704,1857.3,1856.8,0.001]
[1771981446537,0.46242704,1857.1,1856.8,0.001]
[1771981448928,1.3462574,1857.0,1856.8,0.001]
[1771981449604,1.80868444,1857.0,1856.9,0.001]
[1771981449797,1.80868444,1857.0,1856.6,0.001]
[1771981449798,0.46142704,1856.9,1856.6,0.001]
[1771981450840,0.46142704,1857.4,1856.7,0.46918749]
[1771981451211,0.46142704,1857.4,1856.6,0.001]
[1771981451805,4.06424109,1857.3,1856.6,0.001]
[1771981452138,0.46142704,1857.2,1856.6,0.001]
[1771981455235,0.46142704,1857.0,1856.6,0.001]
[1771981455817,1.34618491,1857.1,1856.6,0.47018749]
[1771981456544,5.84536849,1857.4,1856.6,0.47018749]
[1771981456545,5.38430035,1857.3,1856.6,0.47018749]
[1771981458927,0.46142704,1857.3,1856.6,1.8166804]
[1771981459129,0.46142704,1857.3,1856.7,0.46918749]
[1771981461422,1.34611242,1857.2,1856.8,0.47018749]
[1771981461745,1.34811242,1857.2,1856.8,0.47018749]
[1771981462049,1.80953946,1857.2,1856.8,0.47018749]
[1771981463647,0.46142704,1857.1,1856.7,0.001]
[1771981465362,0.46142704,1857.1,1856.7,0.47354505]
[1771981466425,1.3462574,1857.0,1856.7,0.47354505]
[1771981470326,0.45875466,1857.0,1856.6,0.001]
[1771981472828,0.45875466,1856.8,1856.6,0.001]
[1771981473258,1.80508456,1856.9,1856.6,0.001]
[1771981474852,1.80691344,1857.2,1856.6,0.47610241]
[1771981475059,1.80691344,1857.2,1856.8,0.47510241]
[1771981475266,0.002,1857.2,1856.8,0.47510241]
[1771981475556,0.002,1857.1,1856.8,0.47510241]
[1771981477347,0.002,1857.1,1856.9,0.47510241]
[1771981479758,1.34818491,1857.1,1856.9,0.47510241]
[1771981481556,0.002,1857.1,1856.9,0.47510241]
[1771981482258,0.002,1857.1,1856.7,0.001]
[1771981482561,0.46075466,1857.1,1856.5,0.47610241]
[1771981483149,0.46075466,1857.1,1856.6,0.47510241]
[1771981484244,1.3462574,1857.0,1856.6,0.47510241]
[1771981486763,0.45875466,1856.9,1856.5,0.11682309]
[1771981486937,0.45875466,1856.9,1856.5,0.001]
[1771981487266,0.45875466,1856.9,1856.7,0.001]
[1771981487974,0.45875466,1856.8,1856.7,0.001]
[1771981488150,0.45875466,1856.8,1856.5,0.001]
[1771981488872,1.34647492,1856.7,1856.5,0.001]
[1771981496080,1.81896609,1856.7,1856.5,0.001]
[1771981498853,1.81896609,1856.7,1856.6,0.001]
[1771981499473,1.82096609,1856.7,1856.6,0.001]
[1771981500349,1.34835406,1856.9,1856.7,0.11932493]
[1771981500586,0.002,1856.9,1856.7,0.11932493]
[1771981501350,0.47449117,1856.9,1856.6,0.12065863]
[1771981503864,0.002,1856.9,1856.7,0.12032005]
[1771981504290,1.82083664,1856.9,1856.6,0.001]
[1771981504488,0.47249117,1856.7,1856.4,0.001]
[1771981504954,1.05351112,1856.5,1856.4,0.001]
[1771981505161,0.47249117,1856.5,1856.4,0.001]
[1771981506392,1.34659698,1856.6,1856.4,0.001]
[1771981506784,1.81908815,1856.6,1856.4,0.001]
[1771981507391,1.81894808,1856.8,1856.4,0.12259289]
[1771981507563,1.82082107,1856.9,1856.4,0.12259289]
[1771981507965,1.82082323,1856.9,1856.4,0.12259289]
[1771981508373,1.82082323,1856.9,1856.4,1.4692686]
[1771981508566,0.002,1856.9,1856.7,0.12190037]
[1771981509998,1.34833624,1856.9,1856.5,0.12250304]
[1771981511797,1.34833624,1856.9,1856.5,1.46912054]
[1771981512499,1.34833624,1856.9,1856.5,1.47012054]
[1771981512878,0.002,1856.8,1856.5,1.47012054]
[1771981513300,0.002,1856.8,1856.6,0.12338569]
[1771981522994,0.002,1856.8,1856.7,0.12611956]
[1771981523315,0.002,1857.0,1856.7,0.12411956]
[1771981524599,0.002,1857.0,1856.8,0.12437723]
[1771981524981,0.002,1856.9,1856.6,0.12463267]
[1771981525180,0.47449117,1856.9,1856.6,0.12463267]
[1771981527802,0.47449117,1856.9,1856.6,1.47115435]
[1771981527999,0.002,1856.9,1856.7,0.12585853]
[1771981530114,0.002,1856.9,1856.8,1.34640241]
[1771981530295,0.002,1856.9,1856.8,1.4727382]
[1771981530703,0.002,1856.9,1856.7,1.34647492]
[1771981530914,0.002,1856.9,1856.7,1.47303558]
[1771981534807,0.002,1856.9,1856.7,0.12656066]
[1771981535231,0.002,1856.9,1856.7,0.70732224]
[1771981536927,0.002,1856.8,1856.7,0.70732224]
[1771981537111,0.002,1856.8,1856.7,0.58076158]
[1771981537525,0.002,1856.8,1856.6,1.92825438]
[1771981537726,0.47800009,1856.8,1856.6,0.001]
[1771981538124,0.47800009,1856.8,1856.5,0.001]
[1771981540002,0.002,1856.8,1856.6,0.12954574]
[1771981540233,0.002,1856.9,1856.7,0.71030732]
[1771981540534,0.002,1856.9,1856.7,0.12954574]
[1771981542338,0.47800009,1856.9,1856.7,0.12954574]
[1771981543625,0.47800009,1856.9,1856.6,1.34653171]
[1771981543820,0.47800009,1856.9,1856.6,1.47669029]
[1771981544838,0.47800009,1856.9,1856.6,1.47688995]
[1771981545561,0.002,1856.9,1856.7,0.13055603]
[1771981546234,0.47800009,1856.9,1856.6,2.34855064]
[1771981546602,0.002,1856.9,1856.7,0.13075196]
[1771981546815,0.47800009,1856.9,1856.5,1.34757686]
[1771981547117,0.47800009,1856.9,1856.6,0.13095457]
[1771981547313,0.47600009,1856.8,1856.5,0.001]
[1771981548618,0.47600009,1856.8,1856.7,0.001]
[1771981548821,0.47800009,1856.8,1856.7,0.001]
[1771981549927,0.002,1856.8,1856.7,0.001]
[1771981554144,0.47800009,1856.8,1856.5,0.02299211]
[1771981554438,0.47800009,1856.8,1856.5,0.001]
[1771981554806,0.49871767,1856.7,1856.5,0.001]
[1771981560426,1.84519259,1856.7,1856.6,0.001]
[1771981560637,1.84719259,1856.7,1856.6,0.001]
[1771981561845,0.49821767,1856.6,1856.4,0.001]
[1771981562527,0.002,1856.7,1856.4,0.02623282]
[1771981563531,0.002,1856.7,1856.4,1.37292369]
[1771981564532,0.50021767,1856.7,1856.4,0.001]
[1771981566458,0.002,1856.7,1856.5,0.02615794]
[1771981569769,0.002,1856.7,1856.5,1.37274266]
[1771981569970,0.002,1856.7,1856.5,0.02615794]
[1771981570339,0.002,1856.7,1856.5,1.37276418]
[1771981571534,0.002,1856.7,1856.5,1.34660624]
[1771981571805,0.002,1856.7,1856.6,0.02725065]
[1771981572777,0.002,1856.7,1856.6,1.3737981]
[1771981573366,0.002,1856.8,1856.7,0.02767126]
[1771981574574,0.002,1856.9,1856.6,0.87126697]
[1771981574743,0.002,1856.9,1856.7,5.4136517]
[1771981574942,0.002,1856.9,1856.7,1.37435225]
[1771981575360,0.002,1856.9,1856.7,0.02787733]
[1771981575564,0.50021767,1856.9,1856.6,1.37457559]
[1771981576651,0.50021767,1856.9,1856.6,1.37477558]
[1771981576852,0.50021767,1856.9,1856.6,1.34649425]
[1771981577359,0.002,1857.1,1856.8,0.0284818]
[1771981577558,0.002,1857.2,1857.0,0.0284818]
[1771981578161,0.002,1857.3,1856.9,0.87126697]
[1771981578366,0.002,1857.3,1857.1,0.89994647]
[1771981578972,0.002,1857.3,1857.2,1.34611242]
[1771981579385,0.002,1857.5,1857.3,0.02887466]
[1771981579571,0.002,1857.5,1857.3,0.90014163]
[1771981579877,0.002,1857.5,1857.3,0.02887466]
[1771981580853,0.49821767,1857.9,1857.5,0.02707552]
[1771981581078,0.49821767,1857.9,1857.6,1.37308927]
[1771981581381,3.236,1858.2,1857.7,0.02726671]
[1771981581382,0.49921767,1858.2,1857.7,0.02726671]
[1771981581591,0.49921767,1858.2,1857.8,0.89853368]
[1771981581887,0.49921767,1858.4,1857.9,0.02726671]
[1771981582384,0.49921767,1858.4,1857.7,0.89872992]
[1771981582548,0.49921767,1858.4,1857.8,0.02746295]
[1771981582755,0.49921767,1858.4,1857.6,1.37328551]
[1771981583173,0.49921767,1858.2,1857.7,0.02764911]
[1771981583375,0.49921767,1858.6,1858.1,0.89891608]
[1771981583653,0.49921767,1858.6,1857.8,0.02764911]
[1771981584980,0.002,1858.3,1857.8,0.02764911]
[1771981585181,0.002,1858.3,1857.9,1.34560525]
[1771981585354,0.507981,1858.3,1857.9,2.21687222]
[1771981585550,0.507981,1858.3,1857.9,1.34560525]
[1771981585955,0.507981,1858.3,1857.8,1.34562045]
[1771981586193,0.507981,1858.3,1857.7,1.3738914]
[1771981586477,0.507981,1858.3,1857.7,2.24515837]
[1771981587489,0.507981,1858.3,1857.9,0.90000561]
[1771981588055,0.507981,1858.3,1857.9,0.02873864]
[1771981588255,0.507981,1858.3,1857.8,0.02891158]
[1771981589282,0.507981,1858.3,1857.9,1.34560525]
[1771981589586,0.507981,1858.3,1857.9,1.37469437]
[1771981589987,0.507981,1858.3,1857.9,1.34560525]
[1771981590357,0.507981,1858.3,1857.8,1.37488755]
[1771981591288,0.507981,1858.3,1857.9,0.02943249]
[1771981591494,0.002,1858.3,1858.0,2.24623229]
[1771981592171,0.50121767,1858.3,1858.0,2.24623229]
[1771981593464,0.002,1858.3,1858.0,2.24623229]
[1771981593689,0.002,1858.3,1858.0,2.24655689]
[1771981593864,0.002,1858.6,1858.3,0.02975709]
[1771981594184,0.50121767,1858.6,1858.2,0.87126697]
[1771981594683,0.002,1858.6,1858.4,0.87126697]
[1771981595465,0.002,1858.6,1858.3,0.0299172]
[1771981596275,0.49921767,1858.9,1858.4,2.24674415]
[1771981596507,0.49921767,1859.1,1858.6,0.90150094]
[1771981596996,0.49921767,1859.1,1858.4,1.34524321]
[1771981596997,0.49921767,1859.1,1858.8,0.87126697]
[1771981597388,0.49921767,1859.1,1858.7,0.03038669]
[1771981597771,0.49921767,1859.3,1858.8,0.90165366]
[1771981598176,0.49921767,1859.3,1858.8,0.87126697]
[1771981598398,0.49921767,1859.3,1858.9,1.34488138]
[1771981598604,3.234,1859.6,1859.2,0.90180533]
[1771981599116,0.49921767,1860.5,1859.4,0.87126697]
[1771981599272,0.49921767,1860.1,1859.3,0.87126697]
[1771981599471,0.49921767,1859.9,1859.1,0.90196147]
[1771981600397,0.49921767,1859.7,1859.2,1.34466437]
[1771981601988,0.49921767,1859.7,1859.3,0.87126697]
[1771981602379,0.49921767,1859.7,1859.1,2.21597777]
[1771981602380,0.49921767,1859.6,1859.1,2.21597777]
[1771981603170,0.49921767,1859.6,1859.1,2.24726339]
[1771981603377,0.49921767,1859.9,1859.3,0.57910256]
[1771981604113,0.49921767,1859.9,1859.2,0.57910256]
[1771981604114,0.57910256,1859.9,1859.2,0.57910256]
[1771981604313,0.49921767,1859.4,1858.8,0.57910256]
[1771981604498,0.49921767,1859.3,1858.7,1.37639407]
[1771981604827,0.49921767,1859.2,1858.6,1.92417491]
[1771981605028,0.49921767,1859.5,1859.0,0.57910256]
[1771981605194,0.49921767,1859.5,1859.1,0.57910256]
[1771981605517,0.49921767,1859.5,1858.9,0.57910256]
[1771981606544,0.49921767,1859.4,1859.0,1.92391159]
[1771981606745,0.49921767,1859.7,1859.2,0.57910256]
[1771981606945,0.49921767,1859.7,1859.1,0.61080861]
[1771981608747,1.34437513,1859.6,1859.1,0.61080861]
[1771981608911,0.49921767,1859.5,1859.0,1.92387015]
[1771981609418,0.49921767,1859.5,1859.0,1.92390544]
[1771981609841,0.49921767,1859.5,1858.9,0.03196933]
[1771981609842,0.57910256,1859.5,1858.9,0.03196933]
[1771981610041,0.49921767,1859.4,1858.8,1.9239941]
[1771981610243,0.49921767,1859.3,1858.7,5.95903425]
[1771981610436,0.49921767,1859.3,1858.7,1.92412865]
[1771981610611,0.49921767,1859.3,1858.9,0.57910256]
[1771981610811,1.84383423,1859.3,1858.8,1.92402059]
[1771981611844,0.49921767,1859.3,1858.8,1.92402059]
[1771981612034,0.49921767,1859.3,1858.9,0.57910256]
[1771981612616,1.84381226,1859.3,1858.9,0.57910256]
[1771981613047,1.84381226,1859.3,1858.8,1.92402059]
[1771981613210,1.84381226,1859.3,1858.8,1.34411803]
[1771981613416,0.49921767,1859.2,1858.6,1.37770463]
[1771981614326,0.49921767,1859.2,1858.4,1.37794948]
[1771981615338,0.49921767,1859.0,1858.4,1.37794948]
[1771981615550,0.49921767,1859.0,1858.5,0.03251395]
[1771981616120,0.49921767,1859.2,1858.5,0.03251395]
[1771981616331,0.49921767,1859.2,1858.5,0.03171395]
[1771981617437,1.84390038,1859.2,1858.6,1.37610553]
[1771981619251,1.84390038,1859.2,1858.6,1.37530553]
[1771981619429,1.84390038,1859.2,1858.6,1.37450553]
[1771981619629,1.84310038,1859.2,1858.6,1.37450553]
[1771981620744,1.84310038,1859.2,1858.6,1.34349846]
[1771981620963,1.84310038,1859.2,1858.7,0.0307769]
[1771981621165,0.49921767,1859.1,1858.7,0.0307769]
[1771981621450,0.49921767,1858.9,1858.3,1.37670832]
[1771981622221,0.49921767,1858.9,1858.3,1.34626695]
[1771981622427,0.49921767,1859.1,1858.5,0.03010969]
[1771981622827,0.49921767,1859.1,1858.7,0.001]
[1771981623753,0.49921767,1859.0,1858.7,0.001]
[1771981624946,0.49921767,1859.2,1858.7,0.03013734]
[1771981625649,1.84395437,1859.1,1858.7,1.37515359]
[1771981625854,0.49921767,1859.1,1858.7,1.37515359]
[1771981627555,0.49921767,1859.3,1858.9,1.34488138]
[1771981627732,1.84381136,1859.3,1858.9,0.02850758]
[1771981628248,1.84301136,1859.3,1858.9,0.02850758]
[1771981630156,0.49841767,1859.3,1858.9,1.37338221]
[1771981630359,0.002,1859.4,1858.9,1.37338221]
[1771981630558,0.002,1859.4,1859.0,0.02838981]
[1771981631628,0.0012,1859.4,1859.0,0.02838981]
[1771981631827,0.0012,1859.4,1859.2,0.02809088]
[1771981632760,0.0012,1859.4,1859.0,1.37260442]
[1771981633831,0.50001767,1859.4,1859.0,1.37260442]
[1771981634357,0.50001767,1859.4,1859.0,1.37258073]
[1771981634735,0.49921767,1859.4,1859.0,1.37258073]
[1771981634939,0.49881767,1859.3,1858.8,0.02721455]
[1771981635256,0.49881767,1859.3,1859.1,0.57935146]
[1771981635462,0.49881767,1859.3,1858.7,5.3811041]
[1771981635463,0.49881767,1859.3,1858.7,1.92532219]
[1771981635661,0.49881767,1859.3,1858.7,1.95225132]
[1771981636030,1.3447367,1859.1,1858.7,0.001]
[1771981636237,0.49881767,1859.0,1858.7,0.001]
[1771981636538,0.49881767,1859.0,1858.8,0.001]
[1771981637141,0.49881767,1859.2,1858.8,0.001]
[1771981637341,0.50081767,1859.3,1858.9,0.02636807]
[1771981637664,0.49881767,1859.2,1858.8,0.001]
[1771981638164,0.49801767,1859.2,1858.8,0.001]
[1771981638546,0.49841767,1859.0,1858.8,0.001]
[1771981639253,0.49841767,1859.0,1858.7,0.001]
[1771981639438,1.8426353,1859.2,1858.7,0.02861984]
[1771981639765,0.49791767,1859.1,1858.7,0.02861984]
[1771981641260,0.49791767,1859.0,1858.7,0.001]
[1771981643870,0.49791767,1858.9,1858.7,0.001]
[1771981644571,0.49791767,1859.1,1858.7,0.0273034]
[1771981644751,1.84265595,1859.1,1858.7,0.0273034]
[1771981644951,0.49791767,1859.1,1858.7,0.0273034]
[1771981645861,1.84267112,1859.1,1858.7,0.0273034]
[1771981646377,1.84267112,1859.1,1858.7,1.37232824]
[1771981648079,0.49791767,1859.0,1858.7,1.34602534]
[1771981648277,0.49791767,1859.0,1858.7,0.001]
[1771981649277,0.49791767,1859.0,1858.8,0.001]
[1771981649973,0.49791767,1858.9,1858.5,0.001]
[1771981651964,0.49741767,1858.7,1858.5,0.001]
[1771981652954,0.49741767,1858.9,1858.5,0.001]
[1771981654889,0.49741767,1858.7,1858.5,0.001]
[1771981657686,0.49741767,1858.9,1858.6,0.02378104]
[1771981657872,1.84230147,1858.9,1858.5,0.001]
[1771981658076,0.49741767,1858.8,1858.5,0.001]
[1771981659100,5.38066187,1859.2,1858.5,0.001]
[1771981659101,0.27277624,1861.1,1860.1,0.58822045]
[1771981659306,0.46832366,1861.3,1860.5,0.50630045]
[1771981659478,0.12242167,1861.1,1860.5,0.50630045]
[1771981659678,0.57977932,1861.1,1860.5,0.50630045]
[1771981659883,0.57977932,1860.9,1860.5,0.50630045]
[1771981660189,5.47063421,1861.2,1860.5,0.50630045]
[1771981660190,0.83345108,1861.2,1860.5,0.50630045]
[1771981660388,0.57977932,1860.6,1860.0,0.50630045]
[1771981660598,1.04810298,1860.6,1860.0,1.34406165]
[1771981660926,0.46832366,1860.6,1860.0,1.92384097]
[1771981661413,0.46832366,1860.6,1860.0,1.34406165]
[1771981661618,0.46832366,1860.6,1860.0,1.8503621]
[1771981661984,0.70997798,1860.5,1860.0,1.8503621]
[1771981662632,0.70997798,1860.5,1860.2,0.50630045]
[1771981662833,0.46832366,1860.9,1860.2,0.50630045]
[1771981663117,0.46832366,1860.8,1860.0,1.8503621]
[1771981663319,0.46832366,1860.8,1860.1,0.50630045]
[1771981664716,5.37290067,1861.2,1860.1,0.50630045]
[1771981665019,0.46832366,1863.8,1861.6,0.50630045]
[1771981665190,9.51150911,1864.0,1862.3,1.34242603]
[1771981665191,0.46832366,1863.4,1862.3,1.34242603]
[1771981665390,0.46832366,1863.4,1862.3,1.84872648]
[1771981665589,0.46832366,1863.3,1862.3,1.84872648]
[1771981666014,0.46832366,1863.3,1862.3,5.89903243]
[1771981666212,0.46832366,1863.3,1862.4,0.50630045]
[1771981666806,1.29987341,1863.2,1862.3,1.34242603]
[1771981667202,0.46832366,1863.2,1862.3,1.34242603]
[1771981667525,1.3418496,1863.1,1862.2,5.87600457]
[1771981667697,2.17339935,1863.1,1862.2,5.87600457]
[1771981668092,2.17339935,1863.1,1862.3,0.50630045]
[1771981668411,0.83154975,1863.0,1862.3,0.50630045]
[1771981669012,1.3418496,1863.1,1862.3,0.50630045]
[1771981669219,0.83154975,1863.0,1862.3,0.50630045]
[1771981669395,2.17351602,1863.0,1862.3,1.84872575]
[1771981669596,2.17351602,1863.0,1862.4,0.50630045]
[1771981670518,1.24283536,1863.0,1862.4,0.50630045]
[1771981670719,5.36606916,1863.6,1862.6,4.05030595]
[1771981670720,0.46832366,1863.6,1862.6,4.05030595]
[1771981671023,0.46832366,1863.6,1862.3,1.3424135]
[1771981671024,0.46832366,1863.4,1862.3,1.34241913]
[1771981671222,0.46832366,1863.4,1862.3,1.84871958]
[1771981671718,1.81002923,1863.3,1862.3,1.84871958]
[1771981673098,1.52928838,1863.3,1862.3,1.84871958]
[1771981673318,1.52928838,1863.3,1862.4,0.50630045]
[1771981673516,0.002,1862.9,1862.4,0.50630045]
[1771981673920,0.104087,1862.8,1862.2,1.84879857]
[1771981674303,0.104087,1862.8,1862.2,0.50630045]
[1771981674498,0.46832366,1862.8,1861.9,0.50630045]
[1771981674810,0.104087,1862.7,1861.9,1.84896378]
[1771981675213,0.104087,1862.7,1862.0,0.71785721]
[1771981675427,0.46832366,1862.8,1862.0,0.71785721]
[1771981675723,0.104087,1862.7,1862.0,0.71785721]
[1771981675910,1.34220981,1862.6,1862.0,2.0604471]
[1771981676412,1.34220981,1862.6,1862.0,2.0596471]
[1771981676617,0.104087,1862.5,1862.0,2.0596471]
[1771981677032,0.104087,1862.5,1862.0,0.71705721]
[1771981677200,0.104087,1862.5,1862.0,2.05969541]
[1771981677518,0.104087,1862.5,1862.0,0.71705721]
[1771981678218,1.44637627,1862.5,1862.0,2.05968254]
[1771981678419,1.44637627,1862.5,1862.0,0.71705721]
[1771981678827,0.71016128,1862.4,1861.5,3.40766861]
[1771981679124,0.71016128,1862.4,1861.6,0.71785721]
[1771981679328,0.71016128,1862.4,1861.6,0.71705721]
[1771981680199,5.36876696,1862.7,1861.8,0.39299248]
[1771981680404,6.07892824,1862.7,1861.8,0.39299248]
[1771981680605,0.71016128,1862.6,1861.8,0.39299248]
[1771981681002,0.71016128,1862.6,1861.3,0.39161042]
[1771981681500,0.71016128,1862.6,1861.1,9.42321244]
[1771981681501,0.71016128,1862.3,1861.1,1.73488976]
[1771981682110,0.71016128,1862.3,1861.1,1.34327934]
[1771981682312,0.71016128,1862.3,1861.6,0.40983245]
[1771981682512,2.05180153,1862.3,1861.6,0.40983245]
[1771981683013,0.71016128,1862.2,1861.1,1.34327934]
[1771981683212,0.71016128,1862.2,1861.0,1.75247407]
[1771981683405,0.71016128,1862.1,1861.0,1.75247407]
[1771981684227,0.71016128,1862.1,1861.1,0.40774219]
[1771981684460,0.71016128,1862.1,1861.1,1.75099255]
[1771981684461,2.0528036,1862.0,1861.1,1.75099255]
[1771981685744,0.002,1862.9,1861.9,4.05030595]
[1771981686047,0.03063545,1864.3,1863.3,0.71785721]
[1771981686202,1.78407524,1864.4,1863.4,4.76816316]
[1771981686203,0.03063545,1864.4,1863.4,4.76816316]